bitfinex/quotes_ETHUSD_20250611
["timestamp","ask_amount","ask_price","bid_price","bid_amount"]
[1749661643612,1.05695112,2847.5,2845.9,0.802]
[1749661644316,0.1752,2846.8,2846.4,0.7603]
[1749661644629,9.77771118,2847.2,2846.4,0.7603]
[1749661644806,1.60695112,2847.5,2846.4,0.7603]
[1749661644807,9.77771118,2846.8,2846.4,0.7603]
[1749661646086,0.55,2847.4,2846.4,0.7603]
[1749661646287,9.77771118,2847.0,2846.4,0.7603]
[1749661646689,0.1752,2846.4,2846.0,0.7785]
[1749661646890,9.77771118,2846.7,2846.0,0.7785]
[1749661647090,9.77771118,2846.7,2844.2,3.51580554]
[1749661647091,9.77771118,2846.3,2845.6,0.7785]
[1749661648281,0.55,2846.2,2845.6,0.7785]
[1749661648487,0.55,2846.2,2843.4,11.652]
[1749661648488,0.1752,2845.6,2845.2,0.7785]
[1749661648686,0.99851198,2846.1,2845.2,0.7785]
[1749661648687,0.1752,2845.4,2845.2,0.7785]
[1749661651096,9.77771118,2846.5,2845.2,0.7785]
[1749661651298,0.1752,2845.9,2845.3,0.1752]
[1749661651884,0.7898,2847.0,2845.3,0.7948]
[1749661652084,0.1752,2846.2,2845.8,0.7948]
[1749661652302,0.51188974,2847.3,2845.8,0.7948]
[1749661652488,0.1752,2846.5,2846.0,0.1752]
[1749661653532,0.1752,2846.5,2846.1,0.7948]
[1749661654026,0.51188974,2847.3,2846.1,0.7948]
[1749661654027,0.1752,2846.7,2846.2,0.1752]
[1749661655494,9.77771118,2846.8,2846.1,0.7948]
[1749661655829,0.1752,2846.2,2846.1,0.7948]
[1749661656593,9.77771118,2847.1,2846.1,0.7948]
[1749661656931,0.1752,2846.4,2846.1,0.7948]
[1749661657432,4.55766418,2847.7,2846.1,0.7948]
[1749661657433,0.1752,2846.8,2846.2,0.1752]
[1749661657595,0.8223,2847.8,2846.3,0.7889]
[1749661657794,0.1752,2847.2,2846.8,0.7889]
[1749661658944,0.1752,2847.2,2846.7,0.1752]
[1749661658945,0.8032,2848.8,2847.1,0.7828]
[1749661659096,9.77771118,2848.7,2847.1,1.83885112]
[1749661659296,9.77771118,2848.4,2847.1,0.7828]
[1749661659949,9.77771118,2848.1,2847.1,0.7828]
[1749661660123,0.35007299,2848.5,2847.1,0.7828]
[1749661660322,9.77771118,2848.0,2847.1,0.7828]
[1749661661160,9.77771118,2848.1,2847.1,0.7828]
[1749661661363,9.77771118,2848.4,2847.1,0.7828]
[1749661661568,9.77771118,2848.5,2847.1,0.7828]
[1749661661752,10.7554823,2848.5,2847.1,0.7828]
[1749661663522,11.11362796,2848.5,2847.1,0.7828]
[1749661663728,0.8032,2848.8,2847.1,0.7828]
[1749661663927,9.77771118,2848.3,2847.1,0.7828]
[1749661664368,9.77771118,2848.6,2847.1,0.7828]
[1749661665272,0.8032,2848.8,2847.1,10.0]
[1749661665455,9.77771118,2849.1,2847.3,0.7818]
[1749661665655,9.77771118,2848.2,2847.3,0.7818]
[1749661666435,9.77771118,2848.5,2847.3,0.7818]
[1749661666632,9.77771118,2848.1,2847.3,0.7818]
[1749661667573,9.77771118,2848.4,2847.3,0.7818]
[1749661668867,0.1752,2847.8,2847.3,0.957]
[1749661670385,9.77771118,2848.3,2847.3,0.7818]
[1749661670598,0.1752,2847.9,2847.4,0.1752]
[1749661671266,9.77771118,2848.0,2847.3,0.7818]
[1749661671454,0.1752,2847.5,2847.3,0.7818]
[1749661671859,0.1752,2847.5,2846.9,0.7823]
[1749661672073,0.1752,2847.1,2846.9,0.7823]
[1749661673440,0.1752,2847.1,2846.5,0.7905]
[1749661673672,9.77771118,2846.5,2846.1,0.7905]
[1749661673843,0.1752,2846.2,2846.1,0.7905]
[1749661674480,0.1752,2846.2,2845.7,0.8118]
[1749661674791,0.1752,2845.8,2845.7,0.8118]
[1749661674989,0.1752,2845.8,2845.4,0.7814]
[1749661675172,0.1752,2845.5,2845.4,0.7814]
[1749661677083,0.1752,2845.8,2845.4,0.7814]
[1749661677649,9.77771118,2846.7,2845.4,0.7814]
[1749661677848,0.1752,2846.1,2845.5,0.1752]
[1749661678350,9.77771118,2847.1,2845.7,0.1752]
[1749661678351,0.1752,2846.2,2845.7,0.1752]
[1749661678549,10.59351118,2847.1,2845.8,0.8209]
[1749661678789,0.1752,2846.4,2845.9,0.1752]
[1749661679149,0.1752,2846.4,2845.8,0.8209]
[1749661679150,9.77771118,2847.1,2845.8,0.8209]
[1749661679380,0.1752,2846.6,2846.1,0.1752]
[1749661679993,0.1752,2846.4,2845.8,0.9961]
[1749661681665,0.1752,2846.2,2845.8,0.8209]
[1749661681863,9.77771118,2846.3,2845.8,0.8209]
[1749661682079,0.1752,2845.9,2845.8,0.8209]
[1749661682495,0.1752,2845.9,2845.8,0.82490182]
[1749661682811,0.1752,2845.9,2845.8,0.8209]
[1749661682981,0.97777112,2847.0,2845.8,0.8209]
[1749661683314,0.7701,2847.2,2845.8,0.8209]
[1749661683315,0.1752,2846.6,2845.8,0.9961]
[1749661683615,0.1752,2846.6,2846.1,0.1752]
[1749661683831,10.53021118,2847.5,2845.9,0.7767]
[1749661684116,0.1752,2847.1,2846.5,0.1752]
[1749661684268,0.7717,2847.9,2846.6,0.801]
[1749661684466,0.1752,2847.4,2846.9,0.1752]
[1749661685304,4.41832868,2848.6,2846.6,0.801]
[1749661685305,0.1752,2847.8,2847.3,0.1752]
[1749661686206,10.52981118,2848.6,2847.3,0.1752]
[1749661686967,10.52981118,2848.6,2847.0,0.8298]
[1749661687169,9.77771118,2848.2,2847.0,0.8298]
[1749661687369,0.34880741,2848.9,2847.0,0.8298]
[1749661687370,9.77771118,2847.8,2847.0,0.8298]
[1749661687673,1.05298112,2847.7,2847.0,0.8298]
[1749661687881,11.07981118,2848.2,2847.0,0.8298]
[1749661688190,11.07981118,2848.2,2846.5,0.8291]
[1749661688191,9.77771118,2847.4,2846.5,0.8291]
[1749661690725,0.7521,2847.5,2846.5,0.8291]
[1749661690930,10.32771118,2847.8,2846.5,0.8291]
[1749661691096,1.11395112,2847.7,2846.5,0.8291]
[1749661692252,0.8118,2847.9,2846.5,0.8291]
[1749661692750,9.77771118,2847.8,2846.5,0.8291]
[1749661694432,0.55,2848.2,2846.6,0.8273007]
[1749661694595,9.77771118,2847.9,2846.6,0.8273007]
[1749661694793,0.97777112,2847.8,2846.6,0.8233]
[1749661694989,10.32771118,2848.2,2846.6,0.8233]
[1749661695215,9.77771118,2847.8,2846.6,0.8233]
[1749661695388,9.77771118,2847.4,2846.6,0.8233]
[1749661696018,0.1752,2846.8,2846.6,0.8233]
[1749661696892,0.8215,2848.0,2846.6,0.8233]
[1749661697433,0.1752,2847.2,2846.7,0.1752]
[1749661698459,0.80352788,2848.2,2846.8,0.786]
[1749661698615,0.1752,2847.4,2846.9,0.1752]
[1749661702821,0.1752,2847.2,2846.8,0.786]
[1749661704928,0.1752,2847.5,2847.1,0.7583]
[1749661705128,0.1752,2847.7,2847.2,1.07583]
[1749661707258,0.1752,2847.7,2847.2,11.07583]
[1749661709270,0.1752,2847.7,2847.3,0.00399972]
[1749661709668,0.1752,2847.7,2847.2,11.07583]
[1749661710670,0.55,2848.5,2847.3,0.1752]
[1749661710870,0.1752,2847.9,2847.4,1.125103]
[1749661711040,0.1752,2847.9,2847.3,0.1752]
[1749661711427,0.1752,2847.9,2847.4,0.00399958]
[1749661713379,0.1752,2847.9,2847.5,0.8158]
[1749661715966,0.1752,2847.7,2847.5,0.8158]
[1749661716760,9.77771118,2848.5,2847.5,0.8158]
[1749661717008,9.77771118,2848.2,2847.5,0.8158]
[1749661718008,10.32771118,2848.2,2846.7,0.755]
[1749661718993,0.55,2848.2,2846.7,0.755]
[1749661720175,0.7677,2848.3,2846.7,0.755]
[1749661720490,1.15380741,2848.9,2847.0,0.8148]
[1749661720689,1.09315186,2848.8,2847.2,0.8148]
[1749661721418,12.41786804,2848.6,2847.2,0.8148]
[1749661722387,12.41786804,2848.6,2847.3,0.8311]
[1749661722589,12.41786804,2848.6,2847.6,0.8311]
[1749661723827,12.41786804,2848.6,2847.7,0.00399915]
[1749661724036,13.22286804,2848.9,2847.7,1.08750907]
[1749661724346,13.40154098,2849.2,2847.9,10.0]
[1749661724641,10.0,2849.1,2847.9,10.35877144]
[1749661724920,13.40154098,2849.2,2847.9,10.35877144]
[1749661725129,13.40154098,2849.2,2847.9,10.33301206]
[1749661725278,1.6909541,2849.1,2847.9,12.02477426]
[1749661725478,0.90087903,2849.5,2847.9,12.02477426]
[1749661725479,13.19236804,2850.1,2848.5,0.8311]
[1749661725789,10.0,2848.8,2848.0,0.8311]
[1749661725990,12.41786804,2848.3,2847.6,0.8311]
[1749661726206,12.41786804,2848.1,2847.6,0.8311]
[1749661726402,3.508,2848.7,2847.3,0.8272]
[1749661726403,12.41786804,2847.8,2847.3,0.8272]
[1749661726576,0.55,2848.0,2847.3,0.8272]
[1749661726917,0.1752,2847.5,2847.3,0.8272]
[1749661727522,0.1752,2847.6,2847.3,0.8272]
[1749661729178,0.1752,2847.6,2847.4,0.00399958]
[1749661729724,0.1752,2847.6,2847.3,0.8272]
[1749661730021,0.1752,2847.3,2846.5,0.831]
[1749661730316,0.1752,2846.7,2846.5,0.831]
[1749661730897,17.2,2848.1,2846.5,0.831]
[1749661730898,0.7971,2848.0,2846.5,10.831]
[1749661731190,0.7971,2848.0,2846.7,12.41786804]
[1749661731395,0.7971,2848.0,2846.8,12.0727868]
[1749661731922,12.41786804,2848.3,2846.8,12.0727868]
[1749661732218,0.55,2848.2,2846.8,2.0727868]
[1749661732921,0.55,2848.2,2847.0,10.0]
[1749661735011,12.41786804,2848.0,2846.8,0.831]
[1749661735211,12.41786804,2848.0,2847.0,3.508]
[1749661736212,0.55,2847.9,2846.9,10.0]
[1749661740662,0.7971,2848.4,2847.0,13.21036804]
[1749661740814,13.21496804,2848.4,2847.1,10.0]
[1749661741186,0.1752,2847.7,2847.2,0.1752]
[1749661741915,0.1752,2847.7,2847.2,3.6832]
[1749661742674,0.7971,2848.4,2847.3,10.0]
[1749661742836,0.1752,2847.9,2847.4,0.1752]
[1749661743967,0.1752,2847.9,2847.5,0.7777]
[1749661744171,0.8244,2848.8,2847.5,0.7777]
[1749661744172,0.1752,2848.3,2847.8,0.1752]
[1749661744335,0.1752,2848.3,2848.0,0.7725]
[1749661744537,0.8156,2849.2,2848.0,0.7725]
[1749661744734,0.1752,2848.6,2848.1,0.1752]
[1749661744938,0.1752,2848.4,2848.1,3.508]
[1749661745177,0.1752,2848.4,2847.9,0.1752]
[1749661745387,0.55,2848.6,2847.8,3.508]
[1749661745555,0.1752,2848.1,2847.8,3.508]
[1749661747268,0.1752,2848.1,2847.6,0.7556]
[1749661747677,0.1752,2848.1,2847.7,3.508]
[1749661748291,0.1752,2848.1,2847.6,0.7556]
[1749661748784,0.1752,2848.1,2847.6,4.2636]
[1749661748966,0.55,2848.7,2847.6,4.70748]
[1749661749280,0.1752,2848.1,2847.6,4.2636]
[1749661749643,0.1752,2848.1,2847.7,3.508]
[1749661750448,0.1752,2848.1,2847.6,0.7556]
[1749661750688,1.3233468,2849.1,2847.9,10.0]
[1749661750891,0.7985,2849.2,2848.1,10.8289]
[1749661751195,0.7985,2849.2,2848.1,15.4989]
[1749661751388,0.7985,2849.2,2848.1,27.91676804]
[1749661751602,0.7985,2849.7,2848.4,12.41786804]
[1749661751894,0.7985,2849.7,2848.5,3.508]
[1749661752183,1.6724368,2849.6,2848.6,0.8289]
[1749661752389,0.7985,2849.7,2848.6,10.8289]
[1749661752991,0.7985,2849.7,2848.7,3.508]
[1749661753492,0.7985,2850.0,2848.8,10.0]
[1749661753647,0.7985,2850.0,2848.6,0.8289]
[1749661753848,12.41786804,2849.7,2848.7,10.0]
[1749661754095,12.41786804,2849.7,2848.7,11.90069]
[1749661755989,0.7985,2850.0,2848.7,11.90069]
[1749661756150,0.7985,2850.0,2848.9,0.8287]
[1749661756354,0.7985,2850.0,2849.0,10.0]
[1749661756554,0.7985,2850.0,2849.2,10.0]
[1749661756747,0.7985,2850.0,2849.2,11.3508]
[1749661756953,0.8328,2850.4,2849.2,23.76866804]
[1749661757294,0.8328,2850.4,2849.3,0.8287]
[1749661757524,13.25066804,2850.4,2849.3,0.8287]
[1749661757803,12.41786804,2850.1,2849.2,3.507]
[1749661758007,12.41786804,2850.1,2848.8,0.8287]
[1749661758008,1.2417868,2850.0,2849.0,10.0]
[1749661758165,0.55,2850.3,2849.2,10.0]
[1749661758709,12.41786804,2849.8,2849.2,10.0]
[1749661758867,13.25066804,2849.8,2848.9,10.0]
[1749661759314,0.8328,2849.8,2848.9,10.0]
[1749661760112,0.765,2850.1,2848.9,10.0]
[1749661760409,0.765,2850.1,2848.8,16.75356804]
[1749661760410,0.765,2850.1,2849.1,10.0]
[1749661760791,0.1752,2849.6,2849.1,10.1752]
[1749661761500,0.1752,2849.6,2849.2,3.507]
[1749661761900,0.765,2850.1,2849.3,0.8281]
[1749661762091,0.1752,2849.8,2849.3,1.0033]
[1749661762875,0.1752,2849.8,2849.4,3.507]
[1749661763103,0.1752,2849.8,2849.5,3.507]
[1749661763498,0.765,2850.1,2849.4,3.507]
[1749661763698,0.1752,2849.6,2849.1,10.1752]
[1749661763884,0.1752,2849.6,2849.2,3.507]
[1749661764080,12.96786804,2850.0,2849.2,3.507]
[1749661764416,0.1752,2849.4,2849.2,3.507]
[1749661764783,0.1752,2849.4,2849.1,3.507]
[1749661765022,0.1752,2849.4,2849.2,10.0]
[1749661766287,0.765,2850.1,2849.2,10.0]
[1749661766492,0.1752,2849.6,2849.2,10.0]
[1749661766720,0.1752,2849.6,2849.2,11.45103]
[1749661771467,0.1752,2849.6,2849.4,10.0]
[1749661771668,0.1752,2850.1,2849.5,0.994]
[1749661771949,0.1752,2849.8,2849.6,3.506]
[1749661772645,0.1752,2849.8,2849.7,3.506]
[1749661772952,0.1752,2849.8,2849.3,0.1752]
[1749661772953,0.1752,2849.8,2849.4,3.506]
[1749661774253,0.1752,2849.8,2849.4,4.99187494]
[1749661774656,0.1752,2849.8,2849.4,3.506]
[1749661775026,0.7877,2850.4,2849.4,3.506]
[1749661775231,0.1752,2850.0,2849.5,0.1752]
[1749661775954,0.1752,2849.7,2849.5,3.506]
[1749661777658,0.1752,2849.7,2849.4,3.506]
[1749661778624,0.1752,2849.7,2849.4,3.956]
[1749661779339,0.1752,2849.7,2849.2,0.994]
[1749661779538,0.1752,2849.7,2849.4,10.0]
[1749661779736,0.1752,2849.7,2849.4,3.506]
[1749661780967,13.20556804,2850.4,2849.4,3.506]
[1749661780968,0.7877,2850.4,2849.4,3.506]
[1749661781136,0.1752,2849.9,2849.4,3.6812]
[1749661781481,0.1752,2850.3,2849.8,0.1752]
[1749661781653,0.1752,2850.3,2849.9,3.506]
[1749661781852,0.1752,2850.8,2850.2,0.1752]
[1749661782057,0.8088,2851.3,2850.5,0.8329]
[1749661782227,0.8088,2851.3,2850.6,0.1752]
[1749661782228,0.1752,2851.1,2850.6,0.1752]
[1749661782565,0.1752,2851.1,2850.7,3.506]
[1749661782865,0.1752,2850.9,2850.5,3.506]
[1749661783363,0.1752,2851.1,2850.6,0.1752]
[1749661783666,0.1752,2851.1,2850.7,3.506]
[1749661784638,0.1752,2851.1,2850.6,0.1752]
[1749661784950,0.1752,2850.9,2850.4,0.1752]
[1749661785151,12.41786804,2851.2,2850.1,0.7981]
[1749661785358,0.1752,2850.7,2850.4,3.506]
[1749661785569,0.1752,2850.7,2850.2,0.1752]
[1749661785772,0.1752,2850.7,2850.4,10.0]
[1749661785967,0.1752,2850.7,2850.2,0.1752]
[1749661786178,0.1752,2850.7,2850.4,10.0]
[1749661786583,0.1752,2850.7,2850.4,11.36812]
[1749661786785,0.8088,2851.3,2850.4,11.36812]
[1749661786984,0.1752,2850.9,2850.4,11.54332]
[1749661787489,0.1752,2850.9,2850.4,5.04832]
[1749661789050,0.8088,2851.3,2850.4,4.87312]
[1749661789247,0.1752,2850.7,2850.4,3.505]
[1749661789647,0.1752,2850.7,2850.3,10.0]
[1749661789849,0.1752,2850.7,2850.3,13.505]
[1749661790856,12.41786804,2851.2,2850.1,0.7981]
[1749661791186,0.8088,2851.3,2850.3,10.0]
[1749661791187,0.1752,2850.7,2850.3,10.0]
[1749661791411,0.1752,2850.7,2850.3,11.44783]
[1749661792681,0.1752,2850.7,2850.2,0.1752]
[1749661792907,0.1752,2850.7,2850.3,3.505]
[1749661793102,0.784,2850.7,2849.8,0.7653]
[1749661793302,0.1752,2850.3,2850.1,10.0]
[1749661793511,0.1752,2850.3,2849.8,0.9405]
[1749661793693,0.1752,2850.3,2850.0,10.0]
[1749661795286,0.1752,2850.3,2849.8,0.1752]
[1749661795487,0.784,2850.7,2849.5,1.13342]
[1749661795488,0.784,2850.7,2850.0,10.0]
[1749661795693,0.1752,2850.1,2850.0,10.0]
[1749661796091,0.1752,2850.1,2849.6,0.1752]
[1749661796092,0.94,2850.1,2849.6,0.1752]
[1749661796287,0.94,2850.1,2848.3,0.17535365]
[1749661796288,0.7648,2849.5,2848.3,3.505]
[1749661796493,0.7648,2850.0,2848.8,0.7764]
[1749661796728,0.55,2849.9,2849.0,10.0]
[1749661797036,0.7648,2849.6,2848.9,3.505]
[1749661797343,0.55,2849.5,2848.5,0.7764]
[1749661797497,0.55,2849.5,2848.6,3.505]
[1749661797920,0.55,2849.5,2848.6,3.506]
[1749661798123,0.7648,2849.2,2848.5,3.506]
[1749661798310,0.7648,2849.2,2848.5,3.8566]
[1749661798507,0.7648,2849.2,2848.6,10.0]
[1749661799328,12.41786804,2849.0,2847.9,0.7764]
[1749661799539,12.41786804,2849.0,2847.9,4.2824]
[1749661799540,0.7875,2848.8,2847.9,4.2824]
[1749661799743,0.7875,2848.8,2848.0,0.42824]
[1749661800035,12.41786804,2848.7,2847.9,3.506]
[1749661800237,0.55,2848.6,2847.6,0.8218]
[1749661800449,12.41786804,2848.4,2847.4,3.506]
[1749661800599,2.0292868,2848.3,2847.4,3.506]
[1749661801004,0.7875,2848.3,2847.5,10.0]
[1749661801309,0.55,2848.2,2847.4,3.506]
[1749661801523,0.55,2848.2,2847.1,0.8218]
[1749661801746,0.55,2848.2,2847.2,3.506]
[1749661801934,0.55,2848.2,2847.3,10.0]
[1749661802458,13.77586804,2848.1,2847.3,3.506]
[1749661802759,0.808,2848.1,2847.3,3.506]
[1749661802931,0.808,2848.1,2847.3,4.2958]
[1749661806364,0.808,2848.1,2847.4,10.0]
[1749661806564,0.7754,2848.4,2847.4,10.0]
[1749661806765,0.1752,2848.1,2847.6,0.1752]
[1749661810208,0.1752,2848.2,2847.8,10.0]
[1749661810741,0.1752,2848.2,2847.9,4.67]
[1749661810948,12.41786804,2848.6,2847.9,4.67]
[1749661811170,0.1752,2848.0,2847.9,4.67]
[1749661812876,0.1752,2848.0,2847.9,5.137]
[1749661813083,12.41786804,2849.3,2847.9,5.137]
[1749661813084,0.1752,2848.3,2847.9,5.137]
[1749661813235,0.1752,2848.3,2848.0,4.67]
[1749661814383,0.7891,2848.5,2848.0,4.67]
[1749661815140,0.1752,2848.2,2848.0,4.67]
[1749661815350,0.1752,2848.2,2848.1,0.467]
[1749661815652,0.1752,2848.2,2848.0,4.67]
[1749661817774,0.7891,2848.5,2848.0,4.67]
[1749661818001,0.35056515,2849.1,2848.0,4.67]
[1749661818002,0.1752,2848.1,2848.0,0.7565]
[1749661818308,0.1752,2848.4,2848.0,5.4265]
[1749661818612,0.7526,2849.0,2848.1,4.67]
[1749661818823,0.7526,2849.0,2848.4,12.41786804]
[1749661818972,0.7526,2850.8,2848.8,10.0]
[1749661819179,0.1752,2849.6,2849.0,12.41786804]
[1749661819378,0.1752,2849.6,2849.0,14.67]
[1749661820372,0.1752,2849.6,2849.1,3.508]
[1749661820577,0.1752,2849.6,2849.1,5.34332]
[1749661821008,0.1752,2849.6,2849.2,3.508]
[1749661821209,12.41786804,2851.0,2849.3,23.17436804]
[1749661821414,0.1752,2850.0,2849.5,0.1752]
[1749661821711,0.1752,2850.0,2849.6,3.508]
[1749661821877,0.1752,2850.0,2849.6,3.87632]
[1749661822283,0.55,2850.2,2849.5,10.0]
[1749661822608,0.1752,2849.5,2849.4,13.508]
[1749661823008,0.1752,2849.5,2849.4,10.0]
[1749661825009,0.1752,2849.5,2849.3,3.507]
[1749661825231,0.1752,2849.5,2849.0,0.1752]
[1749661825413,0.1752,2849.5,2849.2,3.507]
[1749661825932,0.1752,2849.5,2849.3,10.0]
[1749661826316,0.1752,2849.5,2849.3,11.3507]
[1749661826493,0.1752,2849.8,2849.3,11.5259]
[1749661827740,12.41786804,2849.8,2849.1,3.507]
[1749661827938,0.7785,2850.3,2849.6,10.0]
[1749661828227,0.8331,2849.9,2848.9,0.7754]
[1749661828524,0.8331,2849.9,2848.6,0.7678]
[1749661828525,12.41786804,2849.7,2848.6,0.7678]
[1749661828728,0.8331,2849.5,2848.8,3.507]
[1749661828927,0.8331,2849.5,2848.9,10.0]
[1749661829088,0.8331,2849.5,2848.8,3.506]
[1749661829292,0.8331,2849.5,2848.6,0.7678]
[1749661829604,0.8331,2849.5,2848.8,10.0]
[1749661830011,13.25096804,2849.5,2848.8,10.0]
[1749661830327,12.41786804,2848.9,2847.7,0.7678]
[1749661830628,12.41786804,2848.9,2847.8,3.506]
[1749661830784,12.41786804,2848.9,2847.9,10.0]
[1749661831327,0.8331,2848.7,2847.7,1.11587851]
[1749661831624,12.96786804,2848.6,2847.6,3.90950407]
[1749661832188,0.55,2848.6,2847.6,3.506]
[1749661833008,2.02035604,2848.7,2847.6,3.506]
[1749661833217,0.8331,2848.7,2847.6,15.92386804]
[1749661833604,0.8331,2848.7,2847.7,10.0]
[1749661837625,0.7977,2849.1,2848.1,10.0]
[1749661837796,0.7977,2849.1,2848.4,0.7941]
[1749661837991,0.7977,2849.5,2848.5,12.3211968]
[1749661838199,0.1752,2849.2,2848.7,12.59306804]
[1749661838393,0.1752,2849.2,2848.7,0.1752]
[1749661838725,0.1752,2849.2,2848.7,10.1752]
[1749661841625,0.1752,2849.2,2848.8,3.507]
[1749661842231,0.7977,2849.5,2848.8,3.507]
[1749661842408,0.1752,2849.0,2848.8,3.507]
[1749661842607,0.7706,2848.9,2848.5,4.67]
[1749661842930,0.1752,2848.6,2848.5,4.67]
[1749661843319,0.1752,2848.6,2848.1,0.1752]
[1749661843524,0.1752,2848.3,2848.1,3.507]
[1749661843695,0.1752,2848.3,2848.1,8.177]
[1749661844233,0.7998,2848.2,2848.1,4.67]
[1749661846235,0.1752,2848.3,2848.1,4.67]
[1749661846435,0.1752,2848.3,2848.1,5.137]
[1749661846734,0.7541,2849.2,2848.3,10.0]
[1749661846933,0.1752,2848.8,2848.4,4.67]
[1749661847321,0.7541,2849.2,2848.5,4.67]
[1749661847542,0.1752,2849.2,2848.7,0.1752]
[1749661847742,0.1752,2849.2,2848.7,2.01042]
[1749661847964,0.1752,2849.2,2848.8,10.0]
[1749661849830,0.1752,2849.2,2848.9,3.507]
[1749661850030,0.1752,2849.2,2848.9,8.177]
[1749661852969,0.1752,2849.2,2849.0,10.0]
[1749661853280,0.7639,2850.5,2849.3,0.8263]
[1749661853460,0.1752,2850.2,2849.7,10.0]
[1749661853661,0.7639,2850.5,2849.8,3.507]
[1749661853986,0.1752,2849.9,2849.8,3.507]
[1749661854261,0.1752,2849.9,2849.7,10.0]
[1749661855243,0.7639,2850.5,2849.7,11.0]
[1749661855454,0.1752,2850.3,2849.8,4.8452]
[1749661855632,0.1752,2850.3,2849.9,3.507]
[1749661856032,0.1752,2850.2,2849.8,4.67]
[1749661856279,0.1752,2850.2,2849.9,3.507]
[1749661857060,0.1752,2850.2,2849.8,4.67]
[1749661857267,0.55,2850.3,2849.8,4.67]
[1749661857436,0.7639,2850.5,2849.8,6.4877]
[1749661857637,0.1752,2850.1,2849.8,6.4877]
[1749661859074,0.1752,2850.1,2849.8,4.67]
[1749661859260,12.96786804,2850.4,2849.8,4.67]
[1749661860239,0.1752,2849.8,2849.2,4.67]
[1749661860446,0.1752,2849.5,2849.1,8.176]
[1749661860650,0.1752,2849.5,2849.2,0.91635]
[1749661861378,0.1752,2849.5,2849.1,4.67]
[1749661861786,0.55,2849.6,2848.8,4.67]
[1749661861947,0.1752,2848.9,2848.8,4.67]
[1749661862148,0.1752,2848.9,2848.5,13.506]
[1749661862356,0.1752,2848.9,2848.6,1.8176]
[1749661862564,0.8279,2848.9,2848.6,1.8176]
[1749661862761,0.1752,2848.7,2848.5,13.506]
[1749661863166,0.1752,2848.7,2848.5,3.506]
[1749661863456,0.1752,2848.7,2848.5,13.506]
[1749661864995,0.8279,2848.9,2848.5,13.506]
[1749661864996,0.1752,2848.9,2848.5,13.506]
[1749661866300,0.7519,2849.5,2848.6,22.41786804]
[1749661866509,0.7519,2849.5,2848.9,12.41786804]
[1749661866660,0.7519,2849.5,2849.0,3.506]
[1749661866850,0.7519,2849.5,2849.1,3.506]
[1749661867505,10.0,2850.2,2849.1,3.506]
[1749661867724,1.337,2850.1,2849.1,3.506]
[1749661867867,1.337,2850.1,2849.1,3.93547]
[1749661868396,0.55,2849.9,2849.1,0.42947]
[1749661868588,0.55,2849.9,2849.0,3.506]
[1749661869494,0.55,2849.7,2849.0,3.506]
[1749661869855,0.55,2849.7,2849.0,10.0]
[1749661870514,0.787,2849.8,2849.0,10.0]
[1749661870684,0.787,2849.8,2849.1,1.3506]
[1749661871905,0.787,2849.8,2849.1,4.8566]
[1749661873012,0.7724,2850.9,2849.4,13.20166804]
[1749661873189,0.7724,2850.9,2849.7,12.41786804]
[1749661873707,0.7724,2850.9,2849.8,3.506]
[1749661874073,0.7685,2850.8,2849.9,3.506]
[1749661874274,1.3685,2850.6,2849.9,3.506]
[1749661874470,1.3685,2850.6,2849.6,3.506]
[1749661874670,0.8185,2850.5,2849.6,3.506]
[1749661875711,0.8185,2850.5,2849.7,3.506]
[1749661876371,0.1752,2850.1,2849.7,16.73476804]
[1749661876572,0.1752,2850.1,2849.8,1.6909968]
[1749661877283,0.1752,2850.3,2849.8,1.8661968]
[1749661878577,0.1752,2850.3,2849.8,14.28406484]
[1749661878774,0.1752,2850.3,2849.8,14.63586098]
[1749661880509,0.1752,2850.3,2849.8,14.81515549]
[1749661880711,0.1752,2850.3,2849.9,1.91320555]
[1749661881831,0.1752,2850.3,2850.0,4.67]
[1749661881992,0.1752,2850.3,2850.1,3.506]
[1749661884508,0.1752,2850.3,2850.0,8.176]
[1749661884702,0.1752,2850.3,2850.0,4.67]
[1749661885011,0.1752,2850.3,2850.1,3.506]
[1749661885634,0.8255,2850.2,2850.0,5.18969961]
[1749661886202,1.0007,2850.2,2850.0,5.18969961]
[1749661886408,0.1752,2850.2,2850.0,5.18969961]
[1749661887829,0.1752,2850.2,2850.1,4.67]
[1749661887983,0.1752,2850.2,2850.1,6.86013677]
[1749661888183,0.1752,2850.2,2850.1,4.67]
[1749661893622,0.1752,2850.2,2849.9,4.67]
[1749661894534,0.1752,2850.2,2850.0,3.505]
[1749661894938,0.7548,2850.6,2849.9,8.175]
[1749661895096,0.1752,2850.2,2849.9,8.175]
[1749661895440,0.1752,2850.2,2850.0,0.85267961]
[1749661898211,0.1752,2850.2,2850.0,4.35767961]
[1749661898408,0.1752,2850.2,2849.0,0.8259]
[1749661898409,0.8208,2850.1,2849.0,0.8259]
[1749661898591,0.8208,2850.1,2849.2,3.505]
[1749661898798,0.8208,2850.1,2849.3,10.0]
[1749661899334,0.8208,2850.1,2849.4,12.41786804]
[1749661899632,0.8208,2850.1,2849.5,13.505]
[1749661899806,0.8208,2850.1,2849.6,2.5922868]